bitfinex/quotes_SOLUSD_20251212
["timestamp","ask_amount","ask_price","bid_price","bid_amount"]
[1765514163326,4.48411489,136.93,136.9,16.69663124]
[1765514163521,5.17411489,136.93,136.9,16.69663124]
[1765514163843,4.48411489,136.93,136.9,16.35663124]
[1765514164053,12.476716,136.94,136.91,0.34]
[1765514165363,0.69,136.93,136.9,16.69663124]
[1765514167136,5.17411489,136.93,136.9,16.35663124]
[1765514167564,0.69,136.92,136.9,16.35663124]
[1765514167864,5.17411489,136.93,136.9,16.69663124]
[1765514168750,5.17264081,136.93,136.9,16.69663124]
[1765514169762,12.47567181,136.93,136.9,9.39210649]
[1765514172574,4.48264081,136.93,136.91,0.34]
[1765514172753,12.47521281,136.94,136.92,0.14216157]
[1765514175674,7.302572,136.94,136.93,0.34]
[1765514176078,7.302572,136.94,136.92,0.48216157]
[1765514176676,5.18264081,136.94,136.92,0.48216157]
[1765514177175,5.18264081,136.94,136.92,0.14216157]
[1765514178674,0.7,136.94,136.92,0.14216157]
[1765514178843,5.18264081,136.94,136.92,0.14216157]
[1765514181699,12.48518964,136.94,136.92,0.14216157]
[1765514185889,8.00254883,136.94,136.92,0.14216157]
[1765514186080,12.48518964,136.94,136.92,0.48216157]
[1765514186284,11.78518964,136.94,136.92,0.48216157]
[1765514186668,112.34994492,136.96,136.93,0.34]
[1765514186669,7.30210234,136.95,136.93,0.34]
[1765514186995,7.97210234,136.95,136.92,17.29210649]
[1765514187481,12.45474315,136.95,136.92,17.29210649]
[1765514188390,11.78474315,136.95,136.92,17.29210649]
[1765514188688,0.67,136.94,136.92,16.95210649]
[1765514188885,0.67,136.94,136.92,17.29210649]
[1765514189208,12.45516038,136.94,136.92,16.95210649]
[1765514189662,0.67,136.93,136.92,16.95210649]
[1765514190792,4.48264081,136.94,136.92,16.95210649]
[1765514191085,5.15264081,136.94,136.92,16.95210649]
[1765514192091,4.48264081,136.94,136.92,17.29210649]
[1765514192764,12.45477323,136.95,136.92,17.29210649]
[1765514198786,7.30213242,136.95,136.92,16.95210649]
[1765514198987,7.30213242,136.95,136.93,0.34]
[1765514199609,0.67,136.98,136.94,8.95210649]
[1765514199783,0.67,137.01,136.97,4.62480238]
[1765514199989,0.67,137.01,136.99,0.14216157]
[1765514200688,12.45137812,137.01,136.99,0.14216157]
[1765514201187,5.15264081,137.0,136.99,0.14216157]
[1765514201392,12.45191088,137.0,136.99,0.14216157]
[1765514202611,12.45191088,137.0,136.97,0.14216157]
[1765514202779,0.67,136.99,136.97,0.14216157]
[1765514203431,7.29927007,137.0,136.98,0.34]
[1765514203575,21.0470912,137.03,136.98,9.14994492]
[1765514203576,7.95767204,137.03,136.98,9.14994492]
[1765514203912,7.95767204,137.03,136.99,0.14216157]
[1765514203913,0.66,137.02,136.99,0.14216157]
[1765514204505,5.14264081,137.02,136.99,0.14216157]
[1765514205010,7.95873731,137.01,136.99,0.14216157]
[1765514207399,7.95873731,137.01,136.99,0.48216157]
[1765514207707,7.29873731,137.01,136.99,0.48216157]
[1765514208504,7.95826539,137.02,136.99,0.48216157]
[1765514209183,7.95749301,137.04,137.0,0.34]
[1765514209395,0.66,137.04,137.01,8.95210649]
[1765514209609,0.66,137.05,137.03,0.14216157]
[1765514209909,5.13672044,137.05,137.03,0.14216157]
[1765514210291,0.66,137.04,137.03,0.14216157]
[1765514211514,12.43385996,137.04,137.03,0.14216157]
[1765514212495,8.66,137.06,137.03,0.48216157]
[1765514212688,5.13672044,137.06,137.03,0.48216157]
[1765514212894,0.66,137.05,137.03,0.14216157]
[1765514213887,0.66,137.05,137.03,16.24963401]
[1765514214389,0.66,137.05,137.03,8.95210649]
[1765514215608,0.66,137.06,137.03,16.24968078]
[1765514215811,0.66,137.06,137.03,16.58968078]
[1765514217887,5.13672044,137.06,137.03,8.95210649]
[1765514218293,0.66,137.05,137.03,8.95210649]
[1765514218701,5.13672044,137.05,137.03,8.95210649]
[1765514219008,5.13672044,137.05,137.03,0.14216157]
[1765514219201,0.66,137.04,137.03,0.14216157]
[1765514220998,0.66,137.06,137.03,7.7795064]
[1765514221314,0.66,137.06,137.03,16.58945132]
[1765514221486,0.66,137.07,137.05,0.14216157]
[1765514221688,3.06379376,137.08,137.05,0.14216157]
[1765514221890,3.72379376,137.08,137.05,0.48216157]
[1765514222124,0.66,137.07,137.05,0.14216157]
[1765514224300,3.52379376,137.07,137.05,0.14216157]
[1765514226822,10.81951795,137.07,137.05,0.14216157]
[1765514227020,0.66,137.06,137.05,0.14216157]
[1765514228427,10.81986847,137.06,137.03,0.14216157]
[1765514228610,2.86379376,137.05,137.03,0.14216157]
[1765514228821,0.66,137.04,137.02,8.0]
[1765514229708,3.52379376,137.04,137.02,8.0]
[1765514230033,3.52379376,137.04,136.99,13.52925277]
[1765514230034,2.86379376,137.03,137.01,8.80994492]
[1765514230331,3.52379376,137.03,137.0,17.14994492]
[1765514230814,3.52379376,137.03,137.0,16.80994492]
[1765514231130,3.52379376,137.03,137.0,17.14994492]
[1765514232033,10.82146625,137.03,137.01,0.14216157]
[1765514232218,0.66,137.02,137.01,0.14216157]
[1765514233029,10.83146625,137.03,137.01,0.14216157]
[1765514234337,10.16146625,137.03,137.01,0.14216157]
[1765514234521,0.67,137.02,137.01,0.14216157]
[1765514235046,3.53379376,137.02,137.01,0.14216157]
[1765514235734,13.0470912,137.0,136.95,16.80994492]
[1765514235924,13.0470912,137.0,136.91,7.64389832]
[1765514235925,2.86379376,136.96,136.91,7.64389832]
[1765514236134,2.86379376,136.99,136.91,8.0]
[1765514236135,2.86379376,136.93,136.91,8.0]
[1765514236611,0.67,136.94,136.92,0.14216157]
[1765514237036,3.53379376,136.94,136.91,8.34]
[1765514237244,3.53379376,136.94,136.92,0.14216157]
[1765514237534,2.86379376,136.93,136.92,0.14216157]
[1765514237848,3.53379376,136.94,136.92,0.14216157]
[1765514238026,3.53379376,136.94,136.91,8.0]
[1765514238746,3.53379376,136.94,136.92,0.14216157]
[1765514240666,2.86379376,136.93,136.91,8.0]
[1765514240859,2.86379376,136.93,136.92,0.14216157]
[1765514243487,18.8363528,136.94,136.92,0.14216157]
[1765514243970,3.53379376,136.94,136.92,0.14216157]
[1765514244147,0.67,136.93,136.92,0.14216157]
[1765514244550,3.53379376,136.93,136.92,0.14216157]
[1765514246158,10.83679529,136.93,136.92,0.14216157]
[1765514248184,10.84201608,136.93,136.9,0.1]
[1765514248361,3.53901455,136.92,136.9,0.1]
[1765514248752,0.67,136.91,136.9,0.1]
[1765514249962,10.84308291,136.91,136.9,0.1]
[1765514250855,0.67,136.91,136.9,0.1]
[1765514251061,3.53901455,136.91,136.9,0.1]
[1765514252382,10.84308291,136.91,136.9,0.1]
[1765514254668,18.94308291,136.91,136.9,0.1]
[1765514256694,10.84308291,136.91,136.9,0.1]
[1765514257889,18.94308291,136.91,136.9,0.1]
[1765514259228,10.84308291,136.91,136.9,0.1]
[1765514259494,18.94308291,136.91,136.9,0.1]
[1765514259685,10.84308291,136.91,136.9,0.1]
[1765514259990,18.94308291,136.91,136.9,0.1]
[1765514260182,16.07406836,136.91,136.9,0.1]
[1765514260382,10.84308291,136.91,136.9,0.1]
[1765514260777,7.97406836,136.91,136.9,0.1]
[1765514260984,10.84308291,136.91,136.9,0.1]
[1765514271603,10.17308291,136.91,136.9,0.1]
[1765514271801,0.67,136.92,136.9,0.24216157]
[1765514272098,2.86901455,136.91,136.9,0.24216157]
[1765514272577,3.53901455,136.91,136.9,0.24216157]
[1765514272978,10.84308291,136.91,136.9,0.24216157]
[1765514278405,7.97406836,136.91,136.9,0.24216157]
[1765514278601,10.84308291,136.91,136.9,0.24216157]
[1765514282030,12.45806791,136.91,136.9,0.24216157]
[1765514282508,11.78771379,136.92,136.9,0.58216157]
[1765514282706,12.45771379,136.92,136.9,0.58216157]
[1765514282912,12.45771379,136.92,136.9,0.24216157]
[1765514287333,12.45727596,136.92,136.9,0.24216157]
[1765514294933,18.25750383,136.93,136.91,0.48216157]
[1765514294934,11.78675276,136.93,136.91,0.48216157]
[1765514296239,7.30319104,136.93,136.91,0.48216157]
[1765514296759,7.98319104,136.93,136.91,0.48216157]
[1765514297136,7.30319104,136.93,136.91,0.48216157]
[1765514297343,7.30319104,136.93,136.91,0.34]
[1765514297643,7.98319104,136.93,136.91,0.34]
[1765514297941,7.30319104,136.93,136.91,0.34]
[1765514298314,12.46675276,136.93,136.9,0.58216157]
[1765514298736,11.78712261,136.92,136.9,0.24216157]
[1765514299038,12.46712261,136.92,136.9,0.24216157]
[1765514299337,12.46712261,136.92,136.9,0.58216157]
[1765514299533,11.78712261,136.92,136.9,0.58216157]
[1765514299935,4.48356172,136.92,136.9,0.58216157]
[1765514300332,5.16356172,136.92,136.9,0.58216157]
[1765514300935,5.16356172,136.93,136.9,0.24216157]
[1765514301133,28.34976069,136.94,136.91,0.34]
[1765514301134,25.51332241,136.94,136.91,0.34]
[1765514301613,4.48356172,136.92,136.9,0.1]
[1765514301814,5.16356172,136.92,136.9,0.1]
[1765514302725,7.30406836,136.91,136.9,0.1]
[1765514306341,11.78697156,136.93,136.9,0.44]
[1765514306537,12.46697156,136.93,136.9,0.44]
[1765514306728,11.78697156,136.93,136.9,0.1]
[1765514306935,11.78697156,136.93,136.91,0.34]
[1765514307128,12.46697156,136.93,136.91,0.34]
[1765514307330,12.46697156,136.93,136.9,0.58216157]
[1765514309435,12.46697156,136.93,136.9,0.44]
[1765514312753,5.16356172,136.93,136.9,0.1]
[1765514313047,24.83325906,136.94,136.91,0.34]
[1765514313846,25.51325906,136.94,136.91,0.34]
[1765514314328,25.51325906,136.94,136.91,0.48216157]
[1765514314532,0.68,136.93,136.91,0.48216157]
[1765514314726,24.83325906,136.94,136.91,0.48216157]
[1765514314926,25.51325906,136.94,136.91,0.48216157]
[1765514315518,5.16356172,136.93,136.91,0.48216157]
[1765514315719,5.16356172,136.93,136.91,0.14216157]
[1765514316333,0.68,136.93,136.91,0.14216157]
[1765514316534,5.16356172,136.93,136.91,0.14216157]
[1765514320450,4.48356172,136.93,136.91,0.48216157]
[1765514321021,11.78567544,136.95,136.92,0.48216157]
[1765514321249,4.48356172,136.93,136.92,0.14216157]
[1765514321639,5.16356172,136.93,136.92,0.14216157]
[1765514324277,14.41350664,136.93,136.92,0.14216157]
[1765514325055,21.71650817,136.93,136.92,0.14216157]
[1765514326040,21.71650817,136.93,136.9,0.24216157]
[1765514326244,4.48356172,136.92,136.9,0.58216157]
[1765514326645,22.73912162,136.92,136.9,0.58216157]
[1765514329055,0.7,136.91,136.9,0.24216157]
[1765514330265,30.74267713,136.92,136.9,0.24216157]
[1765514330967,5.18334413,136.91,136.9,0.24216157]
[1765514331151,5.18334413,136.91,136.9,0.1]
[1765514331356,8.10742761,136.91,136.9,0.1]
[1765514333077,2.92408348,136.91,136.9,0.24216157]
[1765514334663,3.62408348,136.91,136.9,0.24216157]
[1765514335444,8.10742761,136.91,136.9,0.1]
[1765514339448,3.62408348,136.91,136.9,0.1]
[1765514339649,8.10742761,136.91,136.9,0.1]
[1765514340966,15.41149597,136.91,136.9,0.1]
[1765514341850,13.79853657,136.91,136.9,0.1]
[1765514342363,10.92815184,136.91,136.9,0.1]
[1765514342563,13.79853657,136.91,136.9,0.1]
[1765514350664,26.84562777,136.91,136.9,0.1]
[1765514354689,26.84562777,136.91,136.88,0.24216157]
[1765514354690,13.0470912,136.89,136.88,0.1]
[1765514354895,13.0470912,136.87,136.86,0.1]
[1765514355070,23.91747593,136.87,136.86,0.1]
[1765514355267,27.53284251,136.87,136.86,0.1]
[1765514356485,34.83904547,136.87,136.86,0.1]
[1765514358079,37.7094302,136.87,136.85,0.24216157]
[1765514358402,13.73750627,136.86,136.85,0.1]
[1765514358864,16.66308681,136.86,136.85,0.1]
[1765514359974,13.79270208,136.86,136.85,0.1]
[1765514361969,10.23231735,136.86,136.85,0.58216157]
[1765514362185,13.10270208,136.86,136.85,0.58216157]
[1765514362973,13.10270208,136.86,136.85,0.1]
[1765514363377,13.79270208,136.86,136.85,0.1]
[1765514364311,13.10270208,136.86,136.85,0.1]
[1765514366280,13.10456191,136.86,136.85,0.1]
[1765514372401,13.10456191,136.86,136.85,0.24216157]
[1765514374898,5.7978251,136.86,136.85,0.1]
[1765514375105,23.22573098,136.87,136.85,0.44]
[1765514375436,10.17796229,136.88,136.86,0.34]
[1765514376200,7.30571773,136.88,136.86,0.34]
[1765514376390,10.17796229,136.88,136.86,0.34]
[1765514377803,10.86796229,136.88,136.86,0.34]
[1765514378504,2.87224456,136.87,136.86,0.14216157]
[1765514379336,10.17844752,136.87,136.86,0.14216157]
[1765514380108,7.30620296,136.87,136.86,0.48216157]
[1765514380596,7.30620296,136.87,136.86,0.34]
[1765514385787,7.95566919,136.88,136.85,0.58216157]
[1765514385992,2.87224456,136.87,136.85,0.58216157]
[1765514386914,10.17866804,136.87,136.85,0.58216157]
[1765514390428,7.30642348,136.87,136.85,0.58216157]
[1765514391321,3.52224456,136.87,136.85,0.58216157]
[1765514391622,3.52224456,136.87,136.85,0.24216157]
[1765514391998,2.87224456,136.87,136.85,0.24216157]
[1765514392213,2.87224456,136.87,136.85,0.58216157]
[1765514393820,10.17865758,136.87,136.85,0.58216157]
[1765514398222,10.82865758,136.87,136.85,0.58216157]
[1765514399327,10.17865758,136.87,136.85,0.24216157]
[1765514399517,0.65,136.86,136.85,0.24216157]
[1765514399713,7.95641302,136.87,136.85,0.24216157]
[1765514400027,10.82865758,136.87,136.85,0.24216157]
[1765514400230,10.82865758,136.87,136.85,0.58216157]
[1765514401026,7.30641302,136.87,136.85,0.58216157]
[1765514401215,7.30532371,136.89,136.86,0.34]
[1765514403634,7.30476041,136.9,136.87,13.43692817]
[1765514403807,12.43958209,136.9,136.87,8.95210649]
[1765514404008,12.43958209,136.9,136.87,0.48216157]
[1765514404526,11.78958209,136.9,136.88,0.34]
[1765514404833,12.43958209,136.9,136.87,0.48216157]
[1765514405526,12.43927997,136.9,136.87,0.48216157]
[1765514405938,11.78927997,136.9,136.88,0.34]
[1765514406868,7.95476041,136.9,136.88,0.34]
[1765514407011,12.43927997,136.9,136.88,0.34]
[1765514409617,12.43927997,136.9,136.87,0.14216157]
[1765514409825,12.43927997,136.9,136.87,0.48216157]
[1765514412635,0.65,136.89,136.87,0.48216157]
[1765514412839,12.43927997,136.9,136.87,0.48216157]
[1765514413146,12.43927997,136.9,136.87,0.27916157]
[1765514415135,12.43927997,136.9,136.87,0.42132314]
[1765514417167,4.48451956,136.88,136.86,0.14216157]
[1765514417373,4.48451956,136.87,136.85,0.1]
[1765514417664,4.48451956,136.87,136.85,0.24216157]
[1765514417863,5.15451956,136.87,136.85,0.24216157]
[1765514421667,0.67,136.87,136.85,0.24216157]
[1765514421870,5.15451956,136.87,136.85,0.24216157]
[1765514424484,4.48451956,136.94,136.88,0.28432314]
[1765514424786,5.15451956,136.93,136.9,0.14216157]
[1765514425180,5.15451956,136.92,136.9,0.14216157]
[1765514425569,0.67,136.91,136.9,0.14216157]
[1765514428992,7.30295354,136.94,136.9,0.14216157]
[1765514429187,12.4574731,136.94,136.9,0.42216157]
[1765514429389,0.67,136.93,136.9,0.42216157]
[1765514430474,0.67,136.93,136.9,7.72665743]
[1765514431380,0.67,136.93,136.9,0.14216157]
[1765514432196,0.67,136.93,136.9,0.42216157]
[1765514432671,0.67,136.93,136.9,16.53650339]
[1765514432998,0.67,136.93,136.9,21.02102295]
[1765514433172,7.30295354,136.94,136.91,0.28]
[1765514433371,0.67,136.94,136.91,0.28]
[1765514434492,5.15451956,136.94,136.91,0.28]
[1765514435274,12.45698955,136.94,136.91,0.28]
[1765514436500,0.67,136.94,136.92,0.14216157]
[1765514437699,7.97202058,136.95,136.92,0.42216157]
[1765514437994,7.97160503,136.96,136.92,0.42216157]
[1765514438194,7.97160503,136.96,136.93,0.28]
[1765514438385,0.67,136.95,136.92,7.72566891]
[1765514438789,0.67,136.95,136.92,7.58350734]
[1765514438994,0.67,136.95,136.92,8.28]
[1765514439798,7.97198505,136.95,136.92,8.0]
[1765514440301,7.97198505,136.95,136.92,8.28]
[1765514442308,7.97198505,136.95,136.93,0.14216157]
[1765514442999,7.30144211,136.96,136.93,9.23210649]
[1765514443229,0.68,136.97,136.93,21.01943318]
[1765514443507,0.68,136.97,136.94,0.28]
[1765514444106,7.9810824,136.97,136.94,0.28]
[1765514444805,7.9810824,136.97,136.94,9.23210649]
[1765514445182,7.9810824,136.97,136.94,8.95210649]
[1765514445387,7.3010824,136.97,136.95,0.28]
[1765514446694,7.98035785,136.98,136.96,0.14216157]
[1765514451425,7.98000129,136.99,136.96,0.42216157]
[1765514451621,12.45899609,136.99,136.96,0.42216157]
[1765514453533,7.98036692,136.98,136.96,0.14216157]
[1765514453729,7.98036692,136.98,136.96,0.42216157]
[1765514453923,7.98036692,136.98,136.96,0.14216157]
[1765514454638,0.68,136.97,136.95,0.14216157]
[1765514456609,7.9812205,136.97,136.94,0.14216157]
[1765514457122,7.9812205,136.97,136.94,0.42216157]
[1765514460344,7.98033581,136.98,136.95,0.28]
[1765514461036,0.68,136.97,136.95,0.28]
[1765514461345,7.98120062,136.97,136.95,0.28]
[1765514462446,7.98120062,136.97,136.94,0.42216157]
[1765514463240,7.98120062,136.97,136.94,0.14216157]
[1765514463434,7.98120062,136.97,136.95,0.28]
[1765514463942,30.03225385,136.99,136.96,0.14216157]
[1765514463943,0.68,136.99,136.96,0.14216157]
[1765514464321,0.68,136.98,136.96,0.14216157]
[1765514467949,3.54686864,136.98,136.96,0.14216157]
[1765514468446,29.36105104,137.0,136.96,19.4001781]
[1765514468447,37.3403468,137.0,136.96,19.4001781]
[1765514469019,21.22638696,137.0,136.97,0.28]
[1765514469452,20.54638696,137.0,136.97,0.28]
[1765514469848,21.22638696,137.0,136.97,0.28]
[1765514470038,0.68,136.99,136.96,16.53330946]
[1765514470548,0.68,136.99,136.97,0.28]
[1765514471231,0.68,136.99,136.96,16.25330946]
[1765514471549,0.68,136.99,136.96,16.53330946]
[1765514472750,3.54686864,136.99,136.96,16.53330946]
[1765514473052,0.68,136.99,136.96,16.53330946]
[1765514473258,3.54686864,136.99,136.96,16.53330946]
[1765514473844,0.69,136.98,136.96,16.53330946]
[1765514478749,0.69,136.99,136.96,16.53330946]
[1765514490364,7.98981369,136.99,136.96,9.23210649]
[1765514490751,0.69,136.98,136.96,8.95210649]
[1765514491572,0.69,136.98,136.96,9.23210649]
[1765514497577,0.69,136.98,136.96,8.95210649]
[1765514499678,7.99038986,136.98,136.96,0.14216157]
[1765514499881,10.85663363,136.98,136.96,0.14216157]
[1765514500181,0.69,136.97,136.96,0.14216157]
[1765514501364,13.2470912,137.0,136.96,9.23210649]
[1765514501672,13.9370912,137.0,136.97,0.28]
[1765514501859,13.2470912,137.0,136.96,11.81835026]
[1765514502185,0.69,136.99,136.96,9.23210649]
[1765514502485,0.69,136.99,136.96,16.53349398]
[1765514503381,0.69,136.99,136.96,8.95210649]
[1765514503685,2.86624377,136.97,136.93,8.95210649]
[1765514503987,2.86624377,136.96,136.93,16.95210649]
[1765514504174,0.67,136.95,136.93,16.95210649]
[1765514504673,0.67,136.95,136.93,24.25497491]
[1765514507088,10.16720122,136.97,136.93,24.53497491]
[1765514507297,0.67,136.96,136.93,24.53497491]
[1765514509288,0.67,136.96,136.94,0.28]
[1765514509877,10.83720122,136.97,136.94,0.28]
[1765514510988,0.67,136.96,136.93,24.53497491]
[1765514511496,0.67,136.96,136.94,0.28]
[1765514511794,0.67,136.96,136.93,24.25497491]
[1765514511996,0.67,136.96,136.93,24.53497491]
[1765514512295,0.67,136.96,136.94,0.28]
[1765514514189,0.67,136.96,136.93,24.25497491]
[1765514514388,0.67,136.96,136.93,24.53497491]
[1765514517294,0.67,136.96,136.93,24.25497491]
[1765514517472,0.67,136.96,136.94,9.23210649]
[1765514518313,0.67,136.96,136.94,8.95210649]
[1765514518467,0.67,136.96,136.94,16.25452822]
[1765514521300,0.67,136.96,136.94,16.53452822]
[1765514522097,0.67,136.96,136.94,16.25452822]
[1765514524917,5.15032371,136.96,136.94,16.25452822]
[1765514525082,4.48032371,136.95,136.92,7.30302657]
[1765514525278,4.48032371,136.94,136.91,8.80994492]
[1765514525587,5.15032371,136.94,136.91,0.28]
[1765514525787,0.67,136.93,136.91,0.28]
[1765514526090,0.67,136.93,136.91,0.42216157]
[1765514526291,0.67,136.93,136.91,7.5840584]
[1765514526500,0.67,136.93,136.92,0.14216157]
[1765514529305,5.15209311,136.93,136.91,0.14216157]
[1765514529809,0.67,136.92,136.91,0.14216157]
[1765514530710,5.15209311,136.92,136.91,0.14216157]
[1765514532193,0.67,136.92,136.91,0.14216157]
[1765514534302,5.15209311,136.92,136.91,0.14216157]
[1765514536810,8.00204053,136.95,136.91,16.53607357]
[1765514537015,12.48413364,136.95,136.91,16.53607357]
[1765514537197,5.18209311,136.96,136.93,0.14216157]
[1765514537708,5.18209311,136.96,136.93,0.42216157]
[1765514537914,5.18209311,136.96,136.93,0.14216157]
[1765514537915,0.7,136.95,136.93,0.14216157]
[1765514538598,5.18209311,136.95,136.93,0.14216157]
[1765514539712,4.48209311,136.95,136.93,0.14216157]
[1765514539912,5.18209311,136.95,136.93,0.14216157]
[1765514541513,4.48209311,136.95,136.93,0.14216157]
[1765514541720,0.7,136.94,136.93,0.14216157]
[1765514543414,12.48456134,136.94,136.89,7.58468909]
[1765514543613,4.48209311,136.92,136.9,8.80994492]
[1765514543920,4.48209311,136.92,136.91,0.14216157]
[1765514544124,5.18209311,136.92,136.91,0.14216157]
[1765514544704,12.48562802,136.92,136.87,16.39578733]
[1765514545029,5.18209311,136.91,136.88,0.42216157]
[1765514545403,5.18209311,136.91,136.88,0.28]
[1765514545712,5.18209311,136.91,136.88,0.42216157]
[1765514546315,0.7,136.91,136.88,0.42216157]
[1765514546508,5.18209311,136.91,136.88,0.42216157]
[1765514546716,5.18209311,136.91,136.88,7.72782439]
[1765514547718,13.0470912,136.95,136.9,0.14216157]
[1765514547719,0.7,136.93,136.9,0.14216157]
[1765514547927,5.18209311,136.93,136.9,0.14216157]
[1765514548125,5.18209311,136.93,136.9,0.42216157]
[1765514549112,0.7,136.93,136.9,0.42216157]
[1765514552330,8.00302812,136.93,136.9,0.14216157]
[1765514552527,8.00302812,136.93,136.9,0.42216157]
[1765514552730,0.7,136.92,136.9,0.42216157]
[1765514553021,0.7,136.92,136.9,0.14216157]
[1765514554530,5.18209311,136.92,136.9,0.14216157]
[1765514554931,0.7,136.91,136.9,0.14216157]
[1765514557629,7.30302812,136.93,136.9,0.14216157]
[1765514557830,11.78512123,136.93,136.9,0.42216157]
[1765514558035,0.7,136.92,136.9,0.14216157]
[1765514558731,7.30302812,136.93,136.9,0.42216157]
[1765514558939,8.00302812,136.93,136.9,0.42216157]
[1765514559116,7.30302812,136.93,136.9,0.14216157]
[1765514559317,8.00302812,136.93,136.9,0.42216157]
[1765514561337,0.7,136.92,136.9,0.14216157]
[1765514562633,8.00302812,136.93,136.9,0.42216157]
[1765514563845,7.30302812,136.93,136.9,0.14216157]
[1765514564034,0.68,136.92,136.9,0.14216157]
[1765514564217,7.98302812,136.93,136.9,0.42216157]
[1765514564617,0.68,136.92,136.9,0.14216157]
[1765514564837,0.68,136.92,136.9,0.42216157]
[1765514565140,11.78512123,136.93,136.9,0.42216157]
[1765514565343,12.46512123,136.93,136.9,0.42216157]
[1765514566646,7.98302812,136.93,136.9,0.42216157]
[1765514569064,5.16268289,136.92,136.9,0.14216157]
[1765514571968,12.46624848,136.92,136.9,0.14216157]
[1765514573267,7.98356559,136.92,136.9,0.14216157]
[1765514573568,0.68,136.91,136.9,0.14216157]
[1765514578477,7.98289171,136.94,136.9,0.42216157]
[1765514578784,12.4655746,136.94,136.91,0.28]
[1765514579579,12.4655746,136.94,136.92,0.14216157]
[1765514580194,0.68,136.93,136.92,0.14216157]
[1765514580690,5.16268289,136.93,136.92,0.14216157]
[1765514582080,12.46568442,136.93,136.92,0.14216157]
[1765514582308,12.46568442,136.93,136.87,8.0]
[1765514582513,4.48268289,136.89,136.86,8.80994492]
[1765514582703,4.48268289,136.89,136.87,0.14216157]
[1765514582904,5.16268289,136.88,136.86,8.80994492]
[1765514583210,5.16268289,136.88,136.87,0.14216157]
[1765514583410,0.68,136.88,136.86,8.80994492]
[1765514584110,0.68,136.88,136.87,0.14216157]
[1765514602649,0.68,136.88,136.86,0.14216157]
[1765514606464,0.66,136.91,136.88,8.95210649]
[1765514606631,0.66,136.91,136.88,9.23210649]
[1765514606949,0.66,136.92,136.89,0.28]
[1765514607150,0.66,136.92,136.9,0.14216157]
[1765514607745,0.66,136.92,136.9,0.42216157]
[1765514607949,0.66,136.92,136.9,0.14216157]
[1765514608130,0.66,136.92,136.9,0.42216157]
[1765514608333,0.66,136.92,136.9,0.14216157]
[1765514608642,7.96337385,136.93,136.9,0.42216157]
[1765514612071,7.96262712,136.94,136.91,0.28]
[1765514612275,7.30262712,136.94,136.91,0.28]
[1765514612483,3.15427932,136.99,136.93,24.7269923]
[1765514612484,21.92581765,136.97,136.93,24.7269923]
[1765514612693,21.92581765,136.97,136.96,8.95210649]
[1765514612984,0.66,136.99,136.97,0.14216157]
[1765514614982,0.66,136.99,136.98,8.14216157]
[1765514617088,0.2,137.0,136.98,8.14216157]
[1765514617265,0.86,137.0,136.98,8.14216157]
[1765514620087,0.86,137.0,136.98,8.42216157]
[1765514622285,0.2,137.0,136.99,0.14216157]
[1765514622485,0.2,137.0,136.99,16.53190939]
[1765514622689,0.2,137.0,136.99,19.40186557]
[1765514623079,0.88,137.0,136.99,0.14216157]
[1765514623280,0.88,137.0,136.98,8.0]
[1765514623495,0.68,136.99,136.98,8.0]
[1765514623681,0.68,136.99,136.98,8.14216157]
[1765514624903,0.2,137.0,136.99,0.14216157]
[1765514626680,0.2,137.0,136.99,0.42216157]
[1765514626882,0.2,137.0,136.99,7.72196447]
[1765514627183,0.2,137.0,136.99,7.44196447]
[1765514629396,0.2,137.0,136.99,16.53190939]
[1765514631703,0.0579,137.0,136.99,22.55614489]
[1765514631885,1e-08,137.01,137.0,22.28352083]
[1765514632207,1e-08,137.01,137.0,33.43347701]
[1765514632902,1e-08,137.01,137.0,43.65320121]
[1765514635290,0.68000001,137.01,137.0,15.29927007]
[1765514635493,0.68000001,137.01,137.0,15.44143164]
[1765514636203,1e-08,137.01,137.0,24.25137656]
[1765514636780,1e-08,137.01,137.0,24.5356997]
[1765514637219,1e-08,137.01,137.0,24.8156997]
[1765514639113,1e-08,137.01,137.0,24.5356997]
[1765514640118,1e-08,137.01,137.0,27.68565588]
[1765514640624,1e-08,137.01,137.0,30.60632325]
[1765514641811,1e-08,137.01,137.0,24.5356997]
[1765514642020,1e-08,137.01,137.0,24.10921499]